lending/lending_fUSD_20240908
["ID","MTS","AMOUNT","RATE_DAILY","PERIOD"]
[337537799,1725781838347,-183.0,0.00013604,2]
[337537800,1725781838357,-26.31911108,0.00013611,2]
[337537801,1725781838380,-134.33088892,0.00013611,2]
[337537802,1725781838389,-160.65,0.00013622,2]
[337537803,1725781838399,-673.217885,0.00013684,2]
[337537804,1725781838408,-239.292766,0.00013684,2]
[337537805,1725781838418,-422.19,0.000137,2]
[337537806,1725781838427,-752.34,0.000137,2]
[337537807,1725781838437,-422.19,0.000137,2]
[337537808,1725781838446,-145.67554982,0.000137,2]
[337537809,1725781838458,-606.66445018,0.000137,2]
[337537810,1725781838467,-422.19,0.000137,2]
[337537811,1725781838476,-752.34,0.000137,2]
[337537812,1725781838486,-752.34,0.000137,2]
[337537820,1725781838672,-416.35263956,0.000137,2]
[337537824,1725781838709,-5.83736044,0.000137,2]
[337537825,1725781838719,-752.34,0.000137,2]
[337537826,1725781838728,-422.19,0.000137,2]
[337537827,1725781838737,-422.19,0.000137,2]
[337537828,1725781838746,-752.34,0.000137,2]
[337537829,1725781838755,-673.217885,0.00013855,2]
[337537830,1725781838765,-386.0,0.0001394,2]
[337537831,1725781838773,-395.58475456,0.00014026,2]
[337537832,1725781838807,-277.63313044,0.00014026,2]
[337537833,1725781838816,-162.75,0.00014136,2]
[337537834,1725781838826,-447.0,0.00014168,2]
[337537835,1725781838835,-1547.0,0.00014168,2]
[337537836,1725781838844,-590.07882451,0.00014168,2]
[337537840,1725781840280,-33.92117549,0.00014168,2]
[337537841,1725781840290,-331.55881274,0.00014168,2]
[337537842,1725781840388,-339.13809578,0.00014168,2]
[337537843,1725781840400,-589.30309148,0.00014168,2]
[337537844,1725781840410,-931.0,0.00014168,2]
[337537845,1725781840419,-557.0,0.00014168,2]
[337537846,1725781840429,-699.59690852,0.00014168,2]
[337537888,1725781843249,-111.40309148,0.00014168,2]
[337537889,1725781843258,-747.28182522,0.00014168,2]
[337537890,1725781843316,-316.220239,0.00014168,2]
[337537891,1725781843328,-836.49793578,0.00014168,2]
[337537892,1725781843338,-552.0,0.00014168,2]
[337537893,1725781843347,-248.0,0.00014168,2]
[337537894,1725781843357,-1130.0,0.00014168,2]
[337537895,1725781843366,-805.0,0.00014168,2]
[337537896,1725781843375,-1921.0,0.00014168,2]
[337537897,1725781843384,-3341.0,0.00014168,2]
[337537898,1725781843393,-1143.0,0.00014168,2]
[337537899,1725781843402,-151.0,0.00014168,2]
[337537900,1725781843411,-5858.0,0.00014168,2]
[337537901,1725781843421,-151.076,0.00014168,2]
[337537902,1725781843431,-200.0,0.00014168,2]
[337537903,1725781843441,-163.0,0.00014168,2]
[337537904,1725781843450,-209.076,0.00014168,2]
[337537905,1725781843462,-9307.0,0.00014168,2]
[337537906,1725781843473,-164.691,0.00014168,2]
[337537907,1725781843483,-251.936,0.00014168,2]
[337537908,1725781843493,-1079.0,0.00014168,2]
[337537909,1725781843505,-150.667,0.00014168,2]
[337537910,1725781843514,-155.972,0.00014168,2]
[337537911,1725781843525,-150.0,0.00014168,2]
[337537912,1725781843535,-673.217885,0.00014197,2]
[337537913,1725781843548,-752.34,0.000142,2]
[337537914,1725781843557,-422.19,0.000142,2]
[337537915,1725781843569,-428.35,0.000142,2]
[337537916,1725781843580,-1122.88,0.000142,2]
[337537917,1725781843590,-673.217885,0.00014369,2]
[337537918,1725781843599,-152.0,0.00014711,3]
[337537919,1725781843608,-1403.04909,0.0001485,2]
[337537920,1725781843618,-2500.0,0.0001489,2]
[337537921,1725781843628,-1000.0,0.00014892,2]
[337537922,1725781843637,-386.0,0.000149,2]
[337537923,1725781843646,-1004.43931348,0.000149,2]
[337537924,1725781843655,-572.58,0.00014973,3]
[337537925,1725781843665,-50380.6682136,0.0001498,3]
[337537926,1725781843673,-151.6,0.0001498,2]
[337537927,1725781843681,-13157.8947368,0.00014983,3]
[337537928,1725781843691,-237.25,0.00014986,2]
[337537929,1725781843700,-52631.5789474,0.0001499,3]
[337537930,1725781843709,-21851.7605475,0.0001499,2]
[337537932,1725781843718,-17033.7731868,0.0001499,2]
[337537934,1725781843728,-12215.7858262,0.0001499,2]
[337537936,1725781843737,-7397.7984655,0.0001499,2]
[337537938,1725781843746,-2579.8111049,0.0001499,2]
[337537940,1725781843755,-259319.20869788,0.0001499,3]
[337537949,1725781843816,-6599.15486515,0.0001499,3]
[337537951,1725781843827,-5588.7,0.0001499,3]
[337537952,1725781843838,-4442.8384,0.0001499,3]
[337537953,1725781843849,-701.11,0.0001499,3]
[337537954,1725781844051,-5753.72585808,0.0001499,3]
[337537955,1725781844086,-20226.84112589,0.0001499,3]
[337537956,1725781844095,-7395.1885756,0.0001499,2]
[337537957,1725781844104,-5764.6597672,0.0001499,2]
[337537958,1725781844113,-4134.1309588,0.0001499,2]
[337537959,1725781844122,-2503.6021504,0.0001499,2]
[337537960,1725781844132,-873.073342,0.0001499,2]
[337537961,1725781844142,-8652.7945162,0.0001499,2]
[337537962,1725781844151,-6746.843635,0.0001499,2]
[337537963,1725781844160,-4840.8927538,0.0001499,2]
[337537964,1725781844170,-2934.9418725,0.0001499,2]
[337537965,1725781844180,-415.59573015,0.0001499,2]
[337537976,1725781846330,-262.8141,0.000141,2]
[337537977,1725781846384,-159.3759,0.000141,2]
[337537978,1725781846395,-255.4341,0.000141,2]
[337537979,1725781846408,-496.9059,0.000141,2]
[337537980,1725781846419,-613.39526115,0.0001499,2]
[337537981,1725781846429,-151.6,0.0001499,2]
[337537982,1725781846439,-250.76041083,0.00015,2]
[337537983,1725781846453,-477.23958917,0.00015,2]
[337537984,1725781846465,-10810.07353083,0.00015,2]
[337537985,1725781846504,-1682.04,0.00015,2]
[337537986,1725781846517,-66224.50994559,0.00015,2]
[337537987,1725781846530,-5278.19478437,0.00015,2]
[337537988,1725781846547,-53038.63396433,0.00015,2]
[337537989,1725781846556,-2754.65908976,0.00015,2]
[337537990,1725781846571,-25096.90873033,0.00015,2]
[337537991,1725781846586,-25653.73937548,0.00015,2]
[337537992,1725781846599,-213609.06577852,0.00015,2]
[337537993,1725781846628,-264.48,0.0001498,3]
[337537994,1725781846637,-2091.95045917,0.00015,2]
[337537995,1725781846650,-254.08592998,0.00015,2]
[337537996,1725781846662,-13565.93964292,0.00015,2]
[337537998,1725781846675,-2544.01325688,0.00015,2]
[337537999,1725781846690,-857.29936134,0.00015,2]
[337538000,1725781846702,-20967.65251968,0.00015,2]
[337538001,1725781846715,-3052.56,0.00015,2]
[337538003,1725781846727,-409.86,0.00015,2]
[337538004,1725781846760,-2777.75,0.00015,2]
[337538005,1725781846772,-1973.60967681,0.00015,2]
[337538006,1725781846783,-2122.03395148,0.00015,2]
[337538007,1725781846794,-494.44395,0.00015,2]
[337538012,1725781878414,563.20849386,0.000139,5]
[337538017,1725782316470,181.56,0.00011893,2]
[337538018,1725782514954,159.71,0.00010959,2]
[337538019,1725782607821,353.21,0.000127,2]
[337538020,1725782632917,700.0,0.00027,120]
[337538029,1725783032323,-177.93,0.00013515,2]
[337538030,1725783032334,-300.0,0.00013516,2]
[337538031,1725783032343,-2357.52,0.00013517,2]
[337538032,1725783032378,-342.40458235,0.00013517,2]
[337538033,1725783032484,-356.8479745,0.00013517,2]
[337538034,1725783032496,-20843.22744315,0.00013517,2]
[337538035,1725783032506,-425.87,0.00013561,2]
[337538036,1725783032515,-250.0,0.00013569,2]
[337538037,1725783032525,-257.65,0.00013703,2]
[337538038,1725783032535,-164.37,0.00013794,2]
[337538039,1725783032546,-1000.0,0.00013827,2]
[337538040,1725783032556,-2800.0,0.000139,5]
[337538041,1725783032565,-200.0,0.000139,5]
[337538042,1725783032575,-150.0,0.00013947,2]
[337538043,1725783032585,-150.99,0.00013948,2]
[337538044,1725783032595,-499.99,0.00013948,2]
[337538045,1725783032604,-5858.0,0.00013948,2]
[337538046,1725783032613,-150.0,0.00013948,2]
[337538047,1725783032623,-9307.0,0.00013948,2]
[337538048,1725783032633,-5700.0,0.00014,5]
[337538049,1725783032642,-500.0,0.00014,5]
[337538050,1725783032652,-600.0,0.00014054,2]
[337538051,1725783032661,-600.0,0.00014054,2]
[337538052,1725783032670,-600.0,0.00014054,2]
[337538053,1725783032680,-600.0,0.00014054,2]
[337538054,1725783032689,-600.0,0.00014054,2]
[337538055,1725783032699,-600.0,0.00014054,2]
[337538057,1725783032710,-600.0,0.00014054,2]
[337538059,1725783032719,-791.93,0.00014055,2]
[337538060,1725783032728,-422.09,0.00014055,2]
[337538061,1725783032738,-8600.0,0.000141,5]
[337538062,1725783032748,-700.0,0.000141,5]
[337538063,1725783032758,-181.56,0.00014157,2]
[337538064,1725783032767,-971.0,0.00014168,2]
[337538065,1725783032777,-150.0,0.00014168,2]
[337538066,1725783032788,-150.313,0.00014168,2]
[337538067,1725783032800,-1541.0,0.00014168,2]
[337538068,1725783032809,-433.461,0.00014168,2]
[337538069,1725783032819,-321.459,0.00014168,2]
[337538071,1725783032828,-1130.0,0.00014168,2]
[337538072,1725783032837,-1921.0,0.00014168,2]
[337538073,1725783032846,-431.87,0.00014192,2]
[337538074,1725783032855,-150.0,0.00014192,2]
[337538075,1725783032865,-151.24,0.00014192,2]
[337538076,1725783032874,-357.5,0.00014192,2]
[337538077,1725783032883,-150.0,0.00014192,2]
[337538078,1725783032893,-217.85,0.00014192,2]
[337538079,1725783032902,-169.82,0.00014192,2]
[337538080,1725783032914,-150.0,0.00014192,2]
[337538081,1725783032924,-301.23,0.00014192,2]
[337538082,1725783032935,-427.56,0.00014192,2]
[337538083,1725783032946,-150.0,0.00014192,2]
[337538084,1725783032956,-357.5,0.00014192,2]
[337538085,1725783032966,-150.0,0.00014192,2]
[337538086,1725783032976,-150.0,0.00014192,2]
[337538087,1725783032986,-449.0,0.00014192,2]
[337538088,1725783032997,-150.0,0.00014192,2]
[337538089,1725783033006,-357.5,0.00014192,2]
[337538090,1725783033015,-150.0,0.00014192,2]
[337538091,1725783033025,-427.56,0.00014192,2]
[337538092,1725783033035,-302.07,0.00014192,2]
[337538093,1725783033044,-150.0,0.00014192,2]
[337538094,1725783033054,-150.0,0.00014192,2]
[337538095,1725783033063,-150.0,0.00014192,2]
[337538096,1725783033072,-427.56,0.00014192,2]
[337538097,1725783033083,-357.5,0.00014192,2]
[337538098,1725783033096,-304.08,0.00014192,2]
[337538099,1725783033106,-150.0,0.00014192,2]
[337538100,1725783033116,-150.0,0.00014192,2]
[337538101,1725783033127,-150.0,0.00014192,2]
[337538102,1725783033136,-427.56,0.00014192,2]
[337538103,1725783033147,-150.0,0.00014192,2]
[337538104,1725783033157,-150.0,0.00014192,2]
[337538105,1725783033167,-150.0,0.00014192,2]
[337538106,1725783033177,-150.0,0.00014192,2]
[337538107,1725783033186,-357.5,0.00014192,2]
[337538108,1725783033196,-331.86,0.00014192,2]
[337538109,1725783033205,-357.5,0.00014192,2]
[337538110,1725783033215,-150.0,0.00014192,2]
[337538111,1725783033224,-427.56,0.00014192,2]
[337538112,1725783033234,-150.0,0.00014192,2]
[337538113,1725783033243,-150.0,0.00014192,2]
[337538114,1725783033252,-150.0,0.00014192,2]
[337538115,1725783033262,-327.87,0.00014192,2]
[337538116,1725783033271,-308.68,0.00014192,2]
[337538117,1725783033281,-206.66,0.00014192,2]
[337538118,1725783033292,-11400.0,0.000142,5]
[337538119,1725783033302,-1000.0,0.000142,5]
[337538120,1725783033311,-600.0,0.00014237,2]
[337538121,1725783033320,-600.0,0.00014237,2]
[337538122,1725783033330,-600.0,0.00014248,2]
[337538123,1725783033339,-600.0,0.00014248,2]
[337538124,1725783033349,-600.0,0.0001425,2]
[337538125,1725783033358,-600.0,0.0001425,2]
[337538126,1725783033368,-600.0,0.0001425,2]
[337538127,1725783033377,-600.0,0.0001425,2]
[337538128,1725783033386,-600.0,0.0001425,2]
[337538129,1725783033396,-600.0,0.0001425,2]
[337538130,1725783033405,-600.0,0.0001425,2]
[337538131,1725783033414,-600.0,0.0001425,2]
[337538132,1725783033424,-600.0,0.0001425,2]
[337538133,1725783033433,-600.0,0.0001425,2]
[337538134,1725783033443,-600.0,0.0001425,2]
[337538135,1725783033452,-600.0,0.0001425,2]
[337538136,1725783033462,-600.0,0.0001425,2]
[337538137,1725783033471,-600.0,0.0001425,2]
[337538138,1725783033481,-600.0,0.0001425,2]
[337538139,1725783033491,-600.0,0.0001425,2]
[337538140,1725783033501,-600.0,0.0001425,2]
[337538141,1725783033510,-600.0,0.0001425,2]
[337538142,1725783033520,-600.0,0.0001425,2]
[337538143,1725783033529,-600.0,0.0001425,2]
[337538144,1725783033539,-600.0,0.0001425,2]
[337538145,1725783033696,-600.0,0.0001425,2]
[337538146,1725783033706,-600.0,0.0001425,2]
[337538147,1725783033715,-600.0,0.0001425,2]
[337538148,1725783033725,-600.0,0.0001425,2]
[337538149,1725783033735,-600.0,0.0001425,2]
[337538150,1725783033744,-600.0,0.0001425,2]
[337538151,1725783033753,-600.0,0.0001425,2]
[337538152,1725783033762,-600.0,0.0001425,2]
[337538153,1725783033772,-600.0,0.0001425,2]
[337538154,1725783033781,-600.0,0.0001425,2]
[337538155,1725783033791,-600.0,0.0001425,2]
[337538156,1725783033801,-600.0,0.0001425,2]
[337538157,1725783033810,-600.0,0.0001425,2]
[337538158,1725783033819,-600.0,0.0001425,2]
[337538159,1725783033829,-600.0,0.0001425,2]
[337538160,1725783033838,-600.0,0.0001425,2]
[337538161,1725783033847,-600.0,0.0001425,2]
[337538162,1725783033856,-618.90296987,0.0001425,2]
[337538163,1725783033866,-14300.0,0.000143,5]
[337538164,1725783033875,-1300.0,0.000143,5]
[337538165,1725783033885,-2800.0,0.000144,5]
[337538166,1725783033895,-200.0,0.000144,5]
[337538167,1725783033904,-887.3974266,0.000145,5]
[337538168,1725783033917,-1912.6025734,0.000145,5]
[337538169,1725783033927,-200.0,0.000145,5]
[337538170,1725783033936,-295.8274266,0.000146,5]
[337538171,1725783033972,-911.46,0.000146,5]
[337538172,1725783033998,-810.86298749,0.000146,5]
[337538173,1725783034010,-781.84958591,0.000146,5]
[337538174,1725783034019,-75.4551208,0.000146,5]
[337538175,1725783034030,-124.5448792,0.000146,5]
[337538176,1725783034039,-1063.65090323,0.000147,2]
[337538177,1725783034048,-1000.09546124,0.000147,2]
[337538178,1725783034057,-2097.070076,0.000147,5]
[337538179,1725783034069,-702.929924,0.000147,5]
[337538180,1725783034078,-151.87891798,0.000147,5]
[337538181,1725783034103,-48.12108202,0.000147,5]
[337538182,1725783034112,-508.14562275,0.000148,5]
[337538183,1725783034122,-415.98592689,0.000148,5]
[337538184,1725783034134,-2412.86845036,0.000148,5]
[337538185,1725783034142,-700.0,0.000148,5]
[337538186,1725783034152,-420.0,0.00014815,2]
[337538187,1725783034163,-183.42695248,0.0001488,2]
[337538188,1725783034173,-407.5678,0.00014883,2]
[337538189,1725783034182,-174.4524848,0.00014886,2]
[337538190,1725783034191,-619.5982,0.0001489,2]
[337538191,1725783034201,-174.45248479,0.000149,2]
[337538192,1725783034210,-158.46,0.00014971,2]
[337538193,1725783034219,-279.69085875,0.00014986,2]
[337538194,1725783034231,-737.25444125,0.00014986,2]
[337538195,1725783034241,-7155.43638786,0.0001499,3]
[337538196,1725783034253,-534.56001,0.0001499,3]
[337538200,1725783038373,-1079.0,0.00013948,2]
[337538202,1725783038383,-780.05598528,0.0001499,3]
[337538204,1725783038394,-465.12120825,0.0001499,3]
[337538206,1725783038405,-1152.06794487,0.0001499,3]
[337538209,1725783038543,-261.569,0.0001499,3]
[337538210,1725783038555,-532.8687617,0.0001499,3]
[337538211,1725783038641,-1859.42434108,0.0001499,3]
[337538224,1725783040637,-822.44,0.0001499,3]
[337538225,1725783040649,-533.63703725,0.0001499,3]
[337538226,1725783040692,-2835.60000006,0.0001499,3]
[337538246,1725783043864,-5255.04182105,0.0001499,3]
[337538248,1725783043876,-277.01723055,0.0001499,2]
[337538251,1725783043894,-437.82358965,0.0001499,2]
[337538252,1725783043903,-492.81903506,0.0001499,2]
[337538253,1725783043914,-111.06757434,0.0001499,2]
[337538254,1725783043924,-492.9323985,0.0001499,2]
[337538255,1725783043934,-83.04177474,0.0001499,2]
[337538261,1725783046436,-298.93641296,0.0001499,2]
[337538262,1725783046446,-271.0239768,0.0001499,2]
[337538263,1725783046455,-5771.89169257,0.0001499,3]
[337538264,1725783046466,-37162.56565596,0.0001499,3]
[337538265,1725783046477,-24597.39971023,0.0001499,3]
[337538266,1725783046546,-12706.10000001,0.0001499,3]
[337538267,1725783046559,-89411.58007121,0.0001499,3]
[337538272,1725783046842,-632.85758058,0.0001499,3]
[337538275,1725783046868,-319.0,0.0001499,3]
[337538278,1725783046879,-319.31715993,0.0001499,3]
[337538294,1725783052879,150.0,0.00012573,2]
[337538295,1725783083432,750.0,0.00011,2]
[337538296,1725783285603,178.39,0.00010851,2]
[337538297,1725783596714,185.32,0.00011429,2]
[337538298,1725783642049,208.0,0.00010959,2]
[337538299,1725783828885,207.06,0.00010769,2]
[337538300,1725784000289,500.0,0.0001,2]
[337538301,1725784045977,652.47,0.00010959,2]
[337538302,1725784092605,230.0,0.00010959,2]
[337538303,1725784093357,500.0,0.00010959,2]
[337538304,1725784093678,500.0,0.00010959,2]
[337538305,1725784094045,560.0,0.00010959,2]
[337538309,1725784172682,235.3,0.00011109,2]
[337538310,1725784193366,-251.8636,0.00012799,2]
[337538311,1725784193393,-4989.70622647,0.00012896,2]
[337538313,1725784193420,-417.5254304,0.000129,2]
[337538315,1725784193446,-200.0,0.00012996,2]
[337538316,1725784193476,-851.55997,0.00012999,2]
[337538317,1725784193503,-428.05161853,0.00012999,2]
[337538318,1725784193597,-1737.84976459,0.00012999,2]
[337538320,1725784193625,-150.0,0.00012999,2]
[337538322,1725784193653,-800.0,0.00013,2]
[337538323,1725784193683,-4450.85708081,0.00013,2]
[337538324,1725784193742,-7138.7068454,0.00013,2]
[337538325,1725784193802,-7138.7068454,0.00013,2]
[337538326,1725784193848,-949.90981725,0.00013,2]
[337538327,1725784202282,158.47,0.00010959,2]
[337538328,1725784202988,150.0,0.00010959,2]
[337538329,1725784203235,229.40291689,0.00010959,2]
[337538330,1725784222045,652.5,0.00010959,2]
[337538360,1725784238461,-300.0,0.00012999,2]
[337538361,1725784238471,-820.5201672,0.00013,2]
[337538362,1725784238482,-2206.20845016,0.00013,2]
[337538363,1725784238497,-610.07294809,0.00013,2]
[337538368,1725784239509,-1813.28998853,0.00013,2]
[337538369,1725784239673,-3884.44144592,0.00013,2]
[337538370,1725784239684,-1247.19195163,0.00013,2]
[337538371,1725784239786,-395.48039178,0.00013,2]
[337538372,1725784239798,-730.07124766,0.00013,2]
[337538373,1725784240065,-996.45,0.00013,2]
[337538374,1725784240082,-2190.83165,0.00013,2]
[337538375,1725784240094,-2641.66166021,0.00013,2]
[337538376,1725784240105,-547.52749393,0.00013,2]
[337538377,1725784240118,-332.54659203,0.00013,2]
[337538378,1725784240148,-719.16443681,0.00013,2]
[337538394,1725784242611,-1123.51652461,0.00013,2]
[337538397,1725784242908,-300.0,0.00013,2]
[337538404,1725784245667,-5438.47195088,0.00013,2]
[337538405,1725784245679,-3323.02232285,0.00013,2]
[337538406,1725784245723,-747.54487454,0.00013,2]
[337538407,1725784245735,-5500.0,0.00013,2]
[337538408,1725784245882,-297345.16937537,0.00013,2]
[337538409,1725784245892,-344.82079601,0.00013005,2]
[337538410,1725784245901,-206.12,0.00013105,2]
[337538411,1725784245910,-250.0,0.00013108,2]
[337538412,1725784245920,-250.0,0.00013122,2]
[337538413,1725784245930,-417.5254304,0.00013122,2]
[337538414,1725784245941,-212.93,0.00013217,2]
[337538415,1725784245951,-19917.91,0.00013322,2]
[337538416,1725784245962,-255.55,0.0001333,2]
[337538417,1725784245972,-499.99,0.0001333,2]
[337538418,1725784245984,-417.5254304,0.00013344,2]
[337538419,1725784245994,-235.3,0.00013372,2]
[337538420,1725784246008,-3174.55,0.0001348,2]
[337538421,1725784246019,-217.8,0.000135,2]
[337538422,1725784246030,-1000.0,0.00013506,2]
[337538423,1725784246039,-250.0,0.00013517,2]
[337538424,1725784246049,-417.5254304,0.00013567,2]
[337538425,1725784246058,-156.98,0.00013692,2]
[337538426,1725784246067,-156.98,0.00013706,2]
[337538427,1725784246076,-156.98,0.00013719,2]
[337538428,1725784246085,-156.98,0.00013733,2]
[337538429,1725784246094,-156.98,0.00013747,2]
[337538430,1725784246103,-156.98,0.00013761,2]
[337538431,1725784246112,-417.5254304,0.00013789,2]
[337538432,1725784246122,-41348.504951,0.000138,3]
[337538433,1725784246131,-400.0,0.000139,5]
[337538434,1725784246140,-5856.0,0.00013973,2]
[337538435,1725784246151,-150.0,0.00013973,2]
[337538436,1725784246160,-9307.0,0.00013973,2]
[337538437,1725784246170,-808.0,0.00013973,2]
[337538438,1725784246180,-542.681,0.00013973,2]
[337538439,1725784246191,-552.0,0.00013973,2]
[337538440,1725784246202,-900.0,0.00014,5]
[337538441,1725784246212,-417.5254304,0.00014011,2]
[337538442,1725784246222,-314.81352102,0.00014077,2]
[337538443,1725784246233,-4134.8504951,0.0001409,3]
[337538444,1725784246243,-1400.0,0.000141,5]
[337538445,1725784246253,-12404.5514853,0.00014167,3]
[337538446,1725784246263,-805.0,0.00014177,2]
[337538447,1725784246272,-1130.0,0.00014177,2]
[337538448,1725784246283,-2005.956,0.00014177,2]
[337538449,1725784246292,-3341.0,0.00014177,2]
[337538450,1725784246302,-248.0,0.00014177,2]
[337538451,1725784246312,-153.07,0.00014192,2]
[337538452,1725784246322,-1900.0,0.000142,5]
[337538453,1725784246332,-417.5254304,0.00014233,2]
[337538454,1725784246341,-420.0,0.00014256,2]
[337538455,1725784246351,-2400.0,0.000143,5]
[337538456,1725784246361,-400.0,0.000144,5]
[337538457,1725784246371,-417.5254304,0.00014456,2]
[337538458,1725784246381,-400.0,0.000145,5]
[337538459,1725784246391,-4134.8504951,0.0001459,3]
[337538460,1725784246400,-400.0,0.000146,5]
[337538461,1725784246408,-420.66956482,0.00014603,2]
[337538462,1725784246417,-417.5254304,0.00014678,2]
[337538463,1725784246426,-400.0,0.000147,5]
[337538464,1725784246435,-152.0,0.00014738,3]
[337538465,1725784246444,-206.12,0.00014743,2]
[337538466,1725784246453,-393515.88790949,0.000148,7]
[337538467,1725784246462,-1100.0,0.000148,5]
[337538468,1725784246471,-1965.37070759,0.0001485,2]
[337538469,1725784246480,-12404.5514853,0.0001488,3]
[337538470,1725784246492,-23305.6846,0.0001489,2]
[337538471,1725784246502,-417.5254304,0.000149,2]
[337538472,1725784246511,-500.0,0.00014973,2]
[337538473,1725784246520,-150.0,0.00014973,2]
[337538474,1725784246529,-132315.215843,0.0001498,3]
[337538475,1725784246539,-79631.0,0.00014986,2]
[337538476,1725784246547,-179.7215786,0.0001499,2]
[337538477,1725784246556,-179.7215786,0.0001499,2]
[337538478,1725784246566,-179.7215786,0.0001499,2]
[337538479,1725784246575,-179.7215786,0.0001499,2]
[337538480,1725784246584,-179.7215786,0.0001499,2]
[337538481,1725784246593,-1554.8351433,0.0001499,2]
[337538482,1725784246603,-1206.0515924,0.0001499,2]
[337538483,1725784246612,-857.2680415,0.0001499,2]
[337538484,1725784246621,-508.4844906,0.0001499,2]
[337538485,1725784246630,-159.7009396,0.0001499,2]
[337538486,1725784246639,-200.0,0.0001499,2]
[337538487,1725784246648,-200.0,0.0001499,2]
[337538488,1725784246658,-1780.45981,0.0001499,2]
[337538489,1725784246667,-8013.8699279,0.0001499,2]
[337538490,1725784246677,-6637.4527862,0.0001499,2]
[337538491,1725784246686,-5261.0356445,0.0001499,2]
[337538492,1725784246695,-3884.6185028,0.0001499,2]
[337538493,1725784246704,-2508.2013612,0.0001499,2]
[337538494,1725784246713,-657.0,0.00015,2]
[337538495,1725784246723,-102933.71354325,0.00015,2]
[337538496,1725784246732,-224067.80067784,0.00015,2]
[337538497,1725784246744,-42263.10192061,0.00015,2]
[337538498,1725784246756,-20656.39328301,0.00015,2]
[337538499,1725784709464,271.02,0.00012024,2]
[337538500,1725784887137,750.0,0.00011,2]
[337538502,1725785031954,151.10967277,0.00012637,2]
[337538503,1725785078396,908.0,0.00027,120]
[337538506,1725785250295,257.46,0.00011865,2]
[337538507,1725785280479,500.0,0.00027,120]
[337538516,1725785431636,-150.0,0.00013488,2]
[337538517,1725785431645,-200.0,0.00013597,2]
[337538518,1725785431812,-8.935,0.00013741,2]
[337538519,1725785431865,-241.065,0.00013741,2]
[337538520,1725785431875,-94.86439992,0.00013754,2]
[337538521,1725785431886,-58.45560008,0.00013754,2]
[337538522,1725785431895,-150.0,0.00013782,2]
[337538523,1725785431904,-140.43450196,0.00013801,2]
[337538524,1725785431916,-92.32549804,0.00013801,2]
[337538525,1725785431925,-212.93,0.00013846,2]
[337538526,1725785431935,-261.28457575,0.00013849,2]
[337538527,1725785431947,-538.71542425,0.00013849,2]
[337538528,1725785431957,-1258.69006252,0.00013858,2]
[337538529,1725785431969,-5719.50471788,0.00013858,2]
[337538530,1725785431981,-6878.74176839,0.00013858,2]
[337538531,1725785431992,-334.50747262,0.00013858,2]
[337538532,1725785432003,-834.81196786,0.00013858,2]
[337538533,1725785432014,-594.99826677,0.00013858,2]
[337538534,1725785432025,-345.5,0.00013858,2]
[337538535,1725785432037,-7933.24574396,0.00013858,2]
[337538536,1725785432048,-250.0,0.00013875,2]
[337538537,1725785432066,-403.01,0.00013952,2]
[337538538,1725785432075,-257.46,0.00014129,2]
[337538540,1725785432086,-422.19,0.00014141,2]
[337538541,1725785432096,-752.34,0.00014141,2]
[337538543,1725785432107,-168.73,0.00014162,2]